bitfinex-derivatives/quotes_BNBF0:USTF0_20260114
["timestamp","ask_amount","ask_price","bid_price","bid_amount"]
[1768369498381,0.75938287,942.03,939.96,2.6431038]
[1768369498678,0.75938287,942.02,940.48,0.18480068]
[1768369498878,0.75938287,942.01,940.48,0.18480068]
[1768369499180,0.75938287,942.0,940.48,0.18480068]
[1768369499382,0.75938287,941.99,940.48,0.18480068]
[1768369499582,0.75938287,941.98,940.48,0.18480068]
[1768369499780,0.75938287,941.97,940.48,0.18480068]
[1768369499979,0.75938287,941.96,940.48,0.18480068]
[1768369500284,0.75938287,941.95,940.48,0.18480068]
[1768369500480,0.75938287,941.94,940.48,0.18480068]
[1768369500681,0.75938287,941.93,940.48,0.18480068]
[1768369500983,0.75938287,941.92,940.48,0.18480068]
[1768369501180,0.75938287,941.91,940.48,0.18480068]
[1768369501382,0.75938287,941.9,940.48,0.18480068]
[1768369501579,0.75938287,941.89,940.48,0.18480068]
[1768369501783,0.75938287,941.88,940.48,0.18480068]
[1768369501985,0.75938287,941.87,940.48,0.18480068]
[1768369502184,0.75938287,941.86,940.48,0.18480068]
[1768369502484,0.75938287,941.85,940.48,0.18480068]
[1768369502680,0.75938287,941.84,940.48,0.18480068]
[1768369502883,0.75938287,941.83,940.48,0.18480068]
[1768369503081,0.75938287,941.82,940.48,0.18480068]
[1768369503385,0.75938287,941.81,940.48,0.18480068]
[1768369503582,0.75938287,941.8,940.48,0.18480068]
[1768369503882,0.75938287,941.79,940.48,0.18480068]
[1768369504087,0.75938287,941.78,940.48,0.18480068]
[1768369504382,0.75938287,941.77,940.48,0.18480068]
[1768369504582,0.75938287,941.76,940.48,0.18480068]
[1768369504782,0.18482374,942.35,940.48,0.18480068]
[1768369504783,0.75938287,941.75,940.48,0.18480068]
[1768369504981,0.75938287,941.74,940.48,0.18480068]
[1768369505187,0.75938287,941.73,940.48,0.18480068]
[1768369505385,0.75938287,941.72,940.48,0.18480068]
[1768369505583,0.75938287,941.71,940.48,0.18480068]
[1768369505786,0.75938287,941.7,940.48,0.18480068]
[1768369505989,0.75938287,941.69,940.48,0.18480068]
[1768369506288,0.75938287,941.68,940.48,0.18480068]
[1768369506486,0.75938287,941.67,940.48,0.18480068]
[1768369506689,0.75938287,941.66,940.48,0.18480068]
[1768369506890,0.75938287,941.65,940.48,0.18480068]
[1768369507190,0.75938287,941.64,940.48,0.18480068]
[1768369507391,0.75938287,941.63,940.48,0.18480068]
[1768369507687,0.75938287,941.62,940.48,0.18480068]
[1768369507891,0.75938287,941.61,940.48,0.18480068]
[1768369508088,0.75938287,941.6,940.48,0.18480068]
[1768369508290,0.75938287,941.59,940.48,0.18480068]
[1768369508489,0.75938287,941.58,940.48,0.18480068]
[1768369508691,0.75938287,941.57,940.48,0.18480068]
[1768369508890,0.75938287,941.56,940.48,0.18480068]
[1768369509091,0.18481392,942.53,940.48,0.18480068]
[1768369509291,0.75685394,942.52,940.48,0.18480068]
[1768369509493,0.75685394,942.51,940.48,0.18480068]
[1768369509688,0.75685394,942.5,940.48,0.18480068]
[1768369509892,0.75685394,942.49,940.48,0.18480068]
[1768369510089,0.75685394,942.48,940.48,0.18480068]
[1768369510294,0.75685394,942.47,940.48,0.18480068]
[1768369510492,0.75685394,942.46,940.48,0.18480068]
[1768369510792,0.75685394,942.45,940.48,0.18480068]
[1768369510990,0.75685394,942.44,940.48,0.18480068]
[1768369511192,0.75685394,942.43,940.48,0.18480068]
[1768369511393,0.75685394,942.42,940.48,0.18480068]
[1768369511594,0.75685394,942.41,940.48,0.18480068]
[1768369511794,0.75685394,942.4,940.48,0.18480068]
[1768369511991,0.75685394,942.39,940.48,0.18480068]
[1768369512191,0.75685394,942.38,940.48,0.18480068]
[1768369512397,0.75685394,942.37,940.48,0.18480068]
[1768369512598,0.75685394,942.36,940.48,0.18480068]
[1768369512798,0.75685394,942.35,940.48,0.18480068]
[1768369512999,0.75685394,942.34,940.48,0.18480068]
[1768369513199,0.75685394,942.33,940.48,0.18480068]
[1768369513399,0.75685394,942.32,940.48,0.18480068]
[1768369513698,0.75685394,942.31,940.48,0.18480068]
[1768369513895,0.75685394,942.3,940.48,0.18480068]
[1768369514196,0.75685394,942.29,940.48,0.18480068]
[1768369514397,0.75685394,942.28,940.48,0.18480068]
[1768369514598,0.75685394,942.27,940.48,0.18480068]
[1768369514897,0.75685394,942.26,940.48,0.18480068]
[1768369515099,0.75685394,942.25,940.48,0.18480068]
[1768369515295,0.75685394,942.24,940.48,0.18480068]
[1768369515496,0.75685394,942.23,940.48,0.18480068]
[1768369515795,0.75685394,942.22,940.48,0.18480068]
[1768369515993,0.75685394,942.21,940.48,0.18480068]
[1768369516196,0.75685394,942.2,940.48,0.18480068]
[1768369516397,0.75685394,942.19,940.48,0.18480068]
[1768369516595,0.75685394,942.18,940.48,0.18480068]
[1768369516896,0.75685394,942.17,940.48,0.18480068]
[1768369517097,0.75685394,942.16,940.48,0.18480068]
[1768369517299,0.75685394,942.15,940.48,0.18480068]
[1768369517499,0.75685394,942.14,940.48,0.18480068]
[1768369517699,0.75685394,942.13,940.48,0.18480068]
[1768369517896,0.75685394,942.12,940.48,0.18480068]
[1768369518097,0.75685394,942.11,940.48,0.18480068]
[1768369518297,0.75685394,942.1,940.48,0.18480068]
[1768369518501,0.75685394,942.09,940.48,0.18480068]
[1768369518702,0.75685394,942.08,940.48,0.18480068]
[1768369518902,0.75685394,942.07,940.48,0.18480068]
[1768369519101,0.75685394,942.06,940.48,0.18480068]
[1768369519400,0.75685394,942.05,940.48,0.18480068]
[1768369519600,0.75685394,942.04,940.48,0.18480068]
[1768369519903,0.75685394,942.03,940.48,0.18480068]
[1768369520204,0.75685394,942.02,940.48,0.18480068]
[1768369520400,0.75685394,942.01,940.48,0.18480068]
[1768369520599,0.75685394,942.0,940.48,0.18480068]
[1768369520904,0.75685394,941.99,940.48,0.18480068]
[1768369521204,0.75685394,941.98,940.48,0.18480068]
[1768369521404,0.75685394,941.97,940.48,0.18480068]
[1768369521605,0.75685394,941.96,940.48,0.18480068]
[1768369521904,0.75685394,941.95,940.48,0.18480068]
[1768369522104,0.75685394,941.94,940.48,0.18480068]
[1768369522303,0.75685394,941.93,940.48,0.18480068]
[1768369522503,0.75685394,941.92,940.48,0.18480068]
[1768369522703,0.75685394,941.91,940.48,0.18480068]
[1768369522904,0.75685394,941.9,940.48,0.18480068]
[1768369523106,0.75685394,941.89,940.48,0.18480068]
[1768369523305,0.75685394,941.88,940.48,0.18480068]
[1768369523604,0.75685394,941.87,940.48,0.18480068]
[1768369523809,0.75685394,941.86,940.48,0.18480068]
[1768369524105,0.75685394,941.85,940.48,0.18480068]
[1768369524309,0.75685394,941.84,940.48,0.18480068]
[1768369524509,0.75685394,941.83,940.48,0.18480068]
[1768369524709,0.75685394,941.82,940.48,0.18480068]
[1768369525006,0.75685394,941.81,940.48,0.18480068]
[1768369525309,0.75685394,941.8,940.48,0.18480068]
[1768369525610,0.75685394,941.79,940.48,0.18480068]
[1768369525910,0.75685394,941.78,940.48,0.18480068]
[1768369526110,0.75685394,941.77,940.48,0.18480068]
[1768369526409,0.75685394,941.76,940.48,0.18480068]
[1768369526706,0.75685394,941.75,940.48,0.18480068]
[1768369526909,0.75685394,941.74,940.48,0.18480068]
[1768369527110,0.75685394,941.73,940.48,0.18480068]
[1768369527311,0.75685394,941.72,940.48,0.18480068]
[1768369527506,0.75685394,941.71,940.48,0.18480068]
[1768369527711,0.75685394,941.7,940.48,0.18480068]
[1768369528011,0.75685394,941.69,940.48,0.18480068]
[1768369528206,0.75685394,941.68,940.48,0.18480068]
[1768369528511,0.75685394,941.67,940.48,0.18480068]
[1768369528808,0.75685394,941.66,940.48,0.18480068]
[1768369529007,0.75685394,941.65,940.48,0.18480068]
[1768369529211,0.75685394,941.64,940.48,0.18480068]
[1768369529411,0.75685394,941.63,940.48,0.18480068]
[1768369529707,0.75685394,941.62,940.48,0.18480068]
[1768369529908,0.75685394,941.61,940.48,0.18480068]
[1768369530107,0.18481392,942.53,940.48,0.18480068]
[1768369530108,0.75685394,941.6,940.48,0.18480068]
[1768369530307,0.75685394,941.59,940.48,0.18480068]
[1768369530507,0.75685394,941.58,940.48,0.18480068]
[1768369530710,0.75685394,941.57,940.48,0.18480068]
[1768369530912,0.75685394,941.56,940.48,0.18480068]
[1768369531106,0.75685394,941.55,940.48,0.18480068]
[1768369531308,0.75685394,941.54,940.48,0.18480068]
[1768369531612,0.75685394,941.53,940.48,0.18480068]
[1768369531812,0.75685394,941.52,940.48,0.18480068]
[1768369532008,0.75685394,941.51,940.48,0.18480068]
[1768369532209,0.75685394,941.5,940.48,0.18480068]
[1768369532414,0.75685394,941.49,940.48,0.18480068]
[1768369532608,0.75685394,941.48,940.48,0.18480068]
[1768369532910,0.75685394,941.47,940.48,0.18480068]
[1768369533210,0.75685394,941.46,940.48,0.18480068]
[1768369533413,0.75685394,941.45,940.48,0.18480068]
[1768369533710,0.18478988,942.74,940.48,0.18480068]
[1768369533909,0.77202096,942.73,940.48,0.18480068]
[1768369534111,0.00958543,942.39,940.48,0.18480068]
[1768369534316,0.77202096,942.38,940.48,0.18480068]
[1768369534513,0.77202096,942.37,940.48,0.18480068]
[1768369534715,0.77202096,942.36,940.48,0.18480068]
[1768369534912,0.77202096,942.35,940.48,0.18480068]
[1768369535114,0.77202096,942.34,940.48,0.18480068]
[1768369535313,0.77202096,942.33,940.48,0.18480068]
[1768369535513,0.77202096,942.32,940.48,0.18480068]
[1768369535716,0.77202096,942.31,940.48,0.18480068]
[1768369535918,0.77202096,942.3,940.48,0.18480068]
[1768369536118,0.77202096,942.29,940.48,0.18480068]
[1768369536319,0.77202096,942.28,940.48,0.18480068]
[1768369536515,0.77202096,942.27,940.48,0.18480068]
[1768369536716,0.77202096,942.26,940.48,0.18480068]
[1768369536916,0.77202096,942.25,940.48,0.18480068]
[1768369537120,0.77202096,942.24,940.48,0.18480068]
[1768369537421,0.77202096,942.23,940.48,0.18480068]
[1768369537621,0.77202096,942.22,940.48,0.18480068]
[1768369537817,0.77202096,942.21,940.48,0.18480068]
[1768369538018,0.77202096,942.2,940.48,0.18480068]
[1768369538222,0.77202096,942.19,940.48,0.18480068]
[1768369538425,0.77202096,942.18,940.48,0.18480068]
[1768369538624,0.77202096,942.17,940.48,0.18480068]
[1768369538925,0.77202096,942.16,940.48,0.18480068]
[1768369539223,0.77202096,942.15,940.48,0.18480068]
[1768369539424,0.77202096,942.14,940.48,0.18480068]
[1768369539723,0.77202096,942.13,940.48,0.18480068]
[1768369540022,0.77202096,942.12,940.48,0.18480068]
[1768369540217,0.77202096,942.11,940.48,0.18480068]
[1768369540419,0.77202096,942.1,940.48,0.18480068]
[1768369540620,0.77202096,942.09,940.48,0.18480068]
[1768369540920,0.77202096,942.08,940.48,0.18480068]
[1768369541123,0.77202096,942.07,940.48,0.18480068]
[1768369541326,0.77202096,942.06,940.48,0.18480068]
[1768369541523,0.77202096,942.05,940.48,0.18480068]
[1768369541725,0.77202096,942.04,940.48,0.18480068]
[1768369542025,0.77202096,942.03,940.48,0.18480068]
[1768369542224,0.77202096,942.02,940.48,0.18480068]
[1768369542426,0.77202096,942.01,940.48,0.18480068]
[1768369542622,0.77202096,942.0,940.48,0.18480068]
[1768369542825,0.77202096,941.99,940.48,0.18480068]
[1768369543023,0.77202096,941.98,940.48,0.18480068]
[1768369543226,0.77202096,941.97,940.48,0.18480068]
[1768369543427,0.77202096,941.96,940.48,0.18480068]
[1768369543626,0.77202096,941.95,940.48,0.18480068]
[1768369543823,0.77202096,941.94,940.48,0.18480068]
[1768369544028,0.77202096,941.93,940.48,2.82790448]
[1768369544327,0.77202096,941.92,940.48,2.82790448]
[1768369544625,0.77202096,941.91,940.49,2.6431038]
[1768369544825,0.77202096,941.9,940.49,2.6431038]
[1768369545123,0.77202096,941.89,940.49,2.6431038]
[1768369545327,0.77202096,941.88,940.49,2.6431038]
[1768369545526,0.77202096,941.87,940.49,2.6431038]
[1768369545726,0.77202096,941.86,940.48,2.82790448]
[1768369545922,0.77202096,941.85,940.48,2.82790448]
[1768369546127,0.77202096,941.84,940.48,0.18480068]
[1768369546327,0.77202096,941.83,940.48,0.18480068]
[1768369546526,0.77202096,941.82,940.48,0.18480068]
[1768369546728,0.77202096,941.81,940.48,2.82790448]
[1768369546926,0.77202096,941.8,940.48,2.82790448]
[1768369547126,0.77202096,941.79,940.48,0.18480068]
[1768369547326,0.77202096,941.78,940.48,0.18480068]
[1768369547528,0.77202096,941.77,940.48,0.18480068]
[1768369547729,0.77202096,941.76,940.48,0.18480068]
[1768369547927,0.77202096,941.75,940.48,0.18480068]
[1768369548124,0.77202096,941.74,940.48,0.18480068]
[1768369548327,0.77202096,941.73,940.48,0.18480068]
[1768369548528,0.77202096,941.72,940.48,0.18480068]
[1768369548728,0.77202096,941.71,940.48,0.18480068]
[1768369548928,0.77202096,941.7,940.48,0.18480068]
[1768369549129,0.77202096,941.69,940.48,0.18480068]
[1768369549430,0.77202096,941.68,940.48,0.18480068]
[1768369549631,0.77202096,941.67,940.48,0.18480068]
[1768369549929,0.77202096,941.66,940.48,0.18480068]
[1768369550230,0.18478988,942.74,940.48,0.18480068]
[1768369550430,0.01331914,942.61,940.48,0.18480068]
[1768369550631,0.76976936,942.6,940.48,0.18480068]
[1768369550834,0.76976936,942.59,940.48,0.18480068]
[1768369551028,0.76976936,942.58,940.48,0.18480068]
[1768369551333,0.76976936,942.57,940.48,0.18480068]
[1768369551533,0.76976936,942.56,940.48,0.18480068]
[1768369551734,0.76976936,942.55,940.48,0.18480068]
[1768369552031,0.76976936,942.54,940.48,0.18480068]
[1768369552232,0.76976936,942.53,940.48,0.18480068]
[1768369552434,0.76976936,942.52,940.48,0.18480068]
[1768369552633,0.76976936,942.51,940.48,0.18480068]
[1768369552830,0.76976936,942.5,940.48,0.18480068]
[1768369553129,0.76976936,942.49,940.48,0.18480068]
[1768369553330,0.76976936,942.48,940.48,0.18480068]
[1768369553535,0.76976936,942.47,940.48,0.18480068]
[1768369553832,0.76976936,942.46,940.48,0.18480068]
[1768369554032,0.76976936,942.45,940.48,0.18480068]
[1768369554233,0.76976936,942.44,940.48,0.18480068]
[1768369554433,0.76976936,942.43,940.48,0.18480068]
[1768369554634,0.76976936,942.42,940.48,0.18480068]
[1768369554833,0.76976936,942.41,940.48,0.18480068]
[1768369555035,0.76976936,942.4,940.48,0.18480068]
[1768369555334,0.76955264,942.39,940.48,0.18480068]
[1768369555534,0.76955264,942.38,940.48,0.18480068]
[1768369555837,0.76955264,942.37,940.48,0.18480068]
[1768369556034,0.76955264,942.36,940.48,0.18480068]
[1768369556239,0.76955264,942.35,940.48,0.18480068]
[1768369556636,0.76955264,942.34,940.48,0.18480068]
[1768369556836,0.76955264,942.33,940.48,0.18480068]
[1768369557042,0.76955264,942.32,940.48,0.18480068]
[1768369557240,0.76955264,942.31,940.48,0.18480068]
[1768369557540,0.76955264,942.3,940.48,0.18480068]
[1768369557738,0.76955264,942.29,940.48,0.18480068]
[1768369557940,0.76955264,942.28,940.48,0.18480068]
[1768369558239,0.76955264,942.27,940.48,0.18480068]
[1768369558440,0.18478988,942.74,940.48,0.18480068]
[1768369558441,0.76955264,942.26,940.48,0.18480068]
[1768369558636,0.76955264,942.25,940.48,0.18480068]
[1768369558839,0.76955264,942.24,940.48,0.18480068]
[1768369559136,0.76955264,942.23,940.48,0.18480068]
[1768369559336,0.76955264,942.22,940.48,0.18480068]
[1768369559537,0.76955264,942.21,940.48,0.18480068]
[1768369559736,0.76955264,942.2,940.48,0.18480068]
[1768369559938,0.76955264,942.19,940.48,0.18480068]
[1768369560135,0.76955264,942.18,940.48,0.18480068]
[1768369560340,0.76955264,942.17,940.48,0.18480068]
[1768369560541,0.76955264,942.16,940.48,0.18480068]
[1768369560736,0.76955264,942.15,940.48,0.18480068]
[1768369560939,0.76955264,942.14,940.48,0.18480068]
[1768369561237,0.76955264,942.13,940.48,0.18480068]
[1768369561442,0.76955264,942.12,940.48,0.18480068]
[1768369561738,0.76955264,942.11,940.48,0.18480068]
[1768369561939,0.76955264,942.1,940.48,0.18480068]
[1768369562141,0.76955264,942.09,940.48,0.18480068]
[1768369562340,0.76955264,942.08,940.48,0.18480068]
[1768369562539,0.76955264,942.07,940.48,0.18480068]
[1768369562742,0.76955264,942.06,940.48,0.18480068]
[1768369563042,0.76955264,942.05,940.48,0.18480068]
[1768369563240,0.76955264,942.04,940.48,0.18480068]
[1768369563443,0.76955264,942.03,940.48,0.18480068]
[1768369563638,0.76955264,942.02,940.48,0.18480068]
[1768369563844,0.76955264,942.01,940.48,0.18480068]
[1768369564044,0.76955264,942.0,940.48,0.18480068]
[1768369564242,0.76955264,941.99,940.48,0.18480068]
[1768369564442,0.76955264,941.98,940.48,0.18480068]
[1768369564744,0.76955264,941.97,940.48,0.18480068]
[1768369564945,0.76955264,941.96,940.48,0.18480068]
[1768369565141,0.76955264,941.95,940.48,0.18480068]
[1768369565342,0.76955264,941.94,940.48,0.18480068]
[1768369565547,0.76955264,941.93,940.48,0.18480068]
[1768369565744,0.76955264,941.92,940.48,0.18480068]
[1768369565942,0.76955264,941.91,940.48,0.18480068]
[1768369566241,0.76955264,941.9,940.48,0.18480068]
[1768369566544,0.76955264,941.89,940.48,0.18480068]
[1768369566742,0.76955264,941.88,940.48,0.18480068]
[1768369566941,0.76955264,941.87,940.48,0.18480068]
[1768369567140,0.76955264,941.86,940.48,0.18480068]
[1768369567345,0.76955264,941.85,940.48,0.18480068]
[1768369567546,0.76955264,941.84,940.48,0.18480068]
[1768369567746,0.76955264,941.83,940.48,0.18480068]
[1768369567946,0.76955264,941.82,940.48,0.18480068]
[1768369568246,0.76955264,941.81,940.48,0.18480068]
[1768369568543,0.76955264,941.8,940.48,0.18480068]
[1768369568746,0.76955264,941.79,940.48,0.18480068]
[1768369568944,0.76955264,941.78,940.48,0.18480068]
[1768369569146,0.76955264,941.77,940.48,0.18480068]
[1768369569345,0.76955264,941.76,940.48,0.18480068]
[1768369569543,0.76955264,941.75,940.48,0.18480068]
[1768369569747,0.76955264,941.74,940.48,0.18480068]
[1768369570044,0.76955264,941.73,940.48,0.18480068]
[1768369570247,0.76955264,941.72,940.48,0.18480068]
[1768369570546,0.76955264,941.71,940.48,0.18480068]
[1768369570747,0.0093479,942.67,940.48,0.18480068]
[1768369570948,0.7703702,942.66,940.48,0.18480068]
[1768369571143,0.7703702,942.65,940.48,0.18480068]
[1768369571344,0.7703702,942.64,940.48,0.18480068]
[1768369571645,0.7703702,942.63,940.48,0.18480068]
[1768369571846,0.7703702,942.62,940.48,0.18480068]
[1768369572048,0.7703702,942.61,940.48,0.18480068]
[1768369572346,0.7703702,942.6,940.48,0.18480068]
[1768369572647,0.7703702,942.59,940.48,0.18480068]
[1768369572849,0.18478988,942.74,940.48,0.18480068]
[1768369572850,0.7703702,942.58,940.48,0.18480068]
[1768369573049,0.18478988,942.74,940.48,0.18480068]
[1768369573050,0.7703702,942.57,940.48,0.18480068]
[1768369573247,0.7703702,942.56,940.48,0.18480068]
[1768369573447,0.7703702,942.55,940.48,0.18480068]
[1768369573648,0.7703702,942.54,940.48,0.18480068]
[1768369573852,0.7703702,942.53,940.48,0.18480068]
[1768369574050,0.7703702,942.52,940.48,0.18480068]
[1768369574253,0.7703702,942.51,940.48,0.18480068]
[1768369574450,0.7703702,942.5,940.48,0.18480068]
[1768369574654,0.7703702,942.49,940.48,0.18480068]
[1768369574851,0.7703702,942.48,940.48,0.18480068]
[1768369575056,0.7703702,942.47,940.48,0.18480068]
[1768369575252,0.7703702,942.46,940.48,0.18480068]
[1768369575453,0.7703702,942.45,940.48,0.18480068]
[1768369575657,0.7703702,942.44,940.48,0.18480068]
[1768369575953,0.7703702,942.43,940.48,0.18480068]
[1768369576155,0.7703702,942.42,940.48,0.18480068]
[1768369576358,0.7703702,942.41,940.48,0.18480068]
[1768369576554,0.7703702,942.4,940.48,0.18480068]
[1768369576753,0.7703702,942.39,940.48,0.18480068]
[1768369577054,0.7703702,942.38,940.48,0.18480068]
[1768369577254,0.7703702,942.37,940.48,0.18480068]
[1768369577458,0.7703702,942.36,940.48,0.18480068]
[1768369577755,0.18478988,942.74,940.48,0.18480068]
[1768369577756,0.7703702,942.35,940.48,0.18480068]
[1768369577955,0.7703702,942.34,940.48,0.18480068]
[1768369578154,0.7703702,942.33,940.48,0.18480068]
[1768369578355,0.7703702,942.32,940.48,0.18480068]
[1768369578658,0.7703702,942.31,940.48,2.82790448]
[1768369578958,0.7703702,942.3,940.48,2.82790448]
[1768369579153,0.7703702,942.29,940.48,2.82790448]
[1768369579356,0.7703702,942.28,940.48,2.82790448]
[1768369579558,0.7703702,942.27,940.48,2.82790448]
[1768369579757,0.7703702,942.26,940.48,2.82790448]
[1768369580057,0.7703702,942.25,940.48,2.82790448]
[1768369580253,0.7703702,942.24,940.48,2.82790448]
[1768369580453,0.7703702,942.23,940.48,2.82790448]
[1768369580654,0.7703702,942.22,940.48,2.82790448]
[1768369580858,0.7703702,942.21,940.48,2.82790448]
[1768369581054,0.7703702,942.2,940.48,2.82790448]
[1768369581356,0.7703702,942.19,940.48,2.82790448]
[1768369581554,0.7703702,942.18,940.48,2.82790448]
[1768369581758,0.7703702,942.17,940.48,2.82790448]
[1768369581954,0.7703702,942.16,940.48,2.82790448]
[1768369582159,0.7703702,942.15,940.48,2.82790448]
[1768369582360,0.7703702,942.14,940.48,2.82790448]
[1768369582554,0.7703702,942.13,940.48,2.82790448]
[1768369582754,0.7703702,942.12,940.48,2.82790448]
[1768369582961,0.7703702,942.11,940.48,2.82790448]
[1768369583156,0.7703702,942.1,940.48,2.82790448]
[1768369583361,0.7703702,942.09,940.48,2.82790448]
[1768369583658,0.7703702,942.08,940.48,2.82790448]
[1768369583858,0.7703702,942.07,940.48,2.82790448]
[1768369584062,0.7703702,942.06,940.48,2.82790448]
[1768369584259,0.7703702,942.05,940.48,2.82790448]
[1768369584560,0.7703702,942.04,940.48,2.82790448]
[1768369584759,0.7703702,942.03,940.48,2.82790448]
[1768369584963,0.7717037,942.02,940.48,2.82790448]
[1768369585263,0.7717037,942.01,940.48,2.82790448]
[1768369585463,0.7717037,942.0,940.48,2.82790448]
[1768369585664,0.7717037,941.99,940.48,2.82790448]
[1768369585865,0.7717037,941.98,940.48,2.82790448]
[1768369586065,0.7717037,941.97,940.48,2.82790448]
[1768369586261,0.7717037,941.96,940.48,2.82790448]
[1768369586461,0.7717037,941.95,940.48,2.82790448]
[1768369586665,0.7717037,941.94,940.48,2.82790448]
[1768369586865,0.7717037,941.93,940.48,2.82790448]
[1768369587062,0.7717037,941.92,940.48,2.82790448]
[1768369587263,0.7717037,941.91,940.48,2.82790448]
[1768369587467,0.7717037,941.9,940.48,0.18480068]
[1768369587764,0.7717037,941.89,940.48,0.18480068]
[1768369587968,0.7717037,941.88,940.48,0.18480068]
[1768369588168,0.7717037,941.87,940.48,0.18480068]
[1768369588368,0.18478988,942.74,940.48,0.18480068]
[1768369588369,0.7717037,941.86,940.48,0.18480068]
[1768369588569,0.7717037,941.85,940.48,0.18480068]
[1768369588768,0.7717037,941.84,940.48,0.18480068]
[1768369589067,0.7717037,941.83,940.48,0.18480068]
[1768369589264,0.7717037,941.82,940.48,0.18480068]
[1768369589470,0.7717037,941.81,940.48,0.18480068]
[1768369589765,0.7717037,941.8,940.48,0.18480068]
[1768369589968,0.7717037,941.79,940.48,0.18480068]
[1768369590169,0.7717037,941.78,940.48,0.18480068]
[1768369590368,0.7717037,941.77,940.48,0.18480068]
[1768369590570,0.7717037,941.76,940.48,0.18480068]
[1768369590768,0.7717037,941.75,940.48,0.18480068]
[1768369591065,0.7717037,941.74,940.48,0.18480068]
[1768369591266,0.7717037,941.73,940.48,0.18480068]
[1768369591464,0.7717037,941.72,940.48,0.18480068]
[1768369591669,0.7717037,941.71,940.48,0.18480068]
[1768369591864,0.7717037,941.7,940.48,0.18480068]
[1768369592069,0.7717037,941.69,940.48,0.18480068]
[1768369592270,0.7717037,941.68,940.48,0.18480068]
[1768369592467,0.7717037,941.67,940.48,0.18480068]
[1768369592767,0.7717037,941.66,940.48,0.18480068]
[1768369592968,0.7717037,941.65,940.48,0.18480068]
[1768369593268,0.7717037,941.64,940.48,0.18480068]
[1768369593468,0.7717037,941.63,940.48,0.18480068]
[1768369593667,0.7717037,941.62,940.48,0.18480068]
[1768369593867,0.7717037,941.61,940.48,0.18480068]
[1768369594168,0.7717037,941.6,940.48,0.18480068]
[1768369594368,0.7717037,941.59,940.48,0.18480068]
[1768369594671,0.7717037,941.58,940.48,0.18480068]
[1768369594870,0.7717037,941.57,940.48,0.18480068]
[1768369595171,0.7717037,941.56,940.48,0.18480068]
[1768369595366,0.7717037,941.55,940.48,0.18480068]
[1768369595571,0.7717037,941.54,940.48,0.18480068]
[1768369595768,0.7717037,941.53,940.48,0.18480068]
[1768369595967,0.00838869,942.51,940.48,0.18480068]
[1768369595968,0.7717037,941.52,940.48,0.18480068]
[1768369596168,0.7717037,941.51,940.48,0.18480068]
[1768369596369,0.7717037,941.5,940.48,0.18480068]
[1768369596570,0.7717037,941.49,940.48,0.18480068]
[1768369596868,0.7717037,941.48,940.48,0.18480068]
[1768369597069,0.7717037,941.47,940.48,0.18480068]
[1768369597267,0.7717037,941.46,940.48,0.18480068]
[1768369597469,0.7717037,941.45,940.48,0.18480068]
[1768369597667,0.7717037,941.44,940.48,0.18480068]
[1768369597872,0.7717037,941.43,940.48,0.18480068]
[1768369598169,0.7717037,941.42,940.48,0.18480068]
[1768369598473,0.77153439,941.41,940.48,0.18480068]
[1768369598773,0.77153439,941.4,940.48,0.18480068]
[1768369598973,0.77153439,941.39,940.48,0.18480068]
[1768369599175,0.77153439,941.38,940.48,0.18480068]
[1768369599371,0.77153439,941.37,940.48,0.18480068]
[1768369599575,0.77153439,941.36,940.48,0.18480068]
[1768369599776,0.77153439,941.35,940.48,0.18480068]
[1768369599972,0.77153439,941.34,940.48,0.18480068]
[1768369600272,0.77153439,941.33,940.48,0.18480068]
[1768369600474,0.77153439,941.32,940.48,0.18480068]
[1768369600675,0.77153439,941.31,940.48,0.18480068]
[1768369600873,0.77153439,941.3,940.48,0.18480068]
[1768369601073,0.01303113,942.28,940.48,0.18480068]
[1768369601375,0.77104985,942.27,940.48,0.18480068]
[1768369601571,0.77104985,942.26,940.48,0.18480068]
[1768369601774,0.77104985,942.25,940.48,0.18480068]
[1768369601976,0.77104985,942.24,940.48,0.18480068]
[1768369602177,0.77104985,942.23,940.48,0.18480068]
[1768369602377,0.77104985,942.22,940.48,0.18480068]
[1768369602574,0.77104985,942.21,940.48,0.18480068]
[1768369602776,0.77104985,942.2,940.48,0.18480068]
[1768369603078,0.77104985,942.19,940.48,0.18480068]
[1768369603276,0.77104985,942.18,940.48,0.18480068]
[1768369603475,0.77104985,942.17,940.48,0.18480068]
[1768369603677,0.77104985,942.16,940.48,0.18480068]
[1768369603981,0.77104985,942.15,940.48,0.18480068]
[1768369604179,0.77104985,942.14,940.48,0.18480068]
[1768369604379,0.77104985,942.13,940.48,0.18480068]
[1768369604575,0.77104985,942.12,940.48,0.18480068]
[1768369604781,0.77104985,942.11,940.48,0.18480068]
[1768369605078,0.77104985,942.1,940.48,0.18480068]
[1768369605378,0.77104985,942.09,940.48,0.18480068]
[1768369605578,0.77104985,942.08,940.48,0.18480068]
[1768369605780,0.77104985,942.07,940.48,0.18480068]
[1768369606082,0.77104985,942.06,940.48,0.18480068]
[1768369606279,0.77104985,942.05,940.48,0.18480068]
[1768369606478,0.77104985,942.04,940.48,0.18480068]
[1768369606676,0.77104985,942.03,940.48,0.18480068]
[1768369606876,0.77104985,942.02,940.48,0.18480068]
[1768369607079,0.77104985,942.01,940.48,0.18480068]
[1768369607283,0.77104985,942.0,940.48,0.18480068]